bitfinex-derivatives/quotes_SOLF0:USTF0_20240923
["timestamp","ask_amount","ask_price","bid_price","bid_amount"]
[1727082131837,3.4716,144.03,144.02,1.0]
[1727082132437,74.83566261,144.09,144.02,1.0]
[1727082132737,7.47,144.06,144.02,1.0]
[1727082133142,3.4716,144.03,144.02,1.0]
[1727082133431,7.47,144.06,144.02,1.0]
[1727082134035,3.51727013,144.09,144.04,7.47]
[1727082134338,7.47,144.09,144.04,7.47]
[1727082134540,11.01423598,144.09,144.04,7.47]
[1727082134738,3.54423598,144.09,144.04,7.47]
[1727082134931,7.47,144.09,144.04,7.47]
[1727082135239,3.4708,144.07,144.04,7.47]
[1727082136630,7.47,144.06,144.02,3.7082]
[1727082137942,3.4713,144.05,144.02,3.7082]
[1727082139438,3.4713,144.05,144.02,11.1782]
[1727082139841,3.471,144.06,144.02,11.1782]
[1727082140943,3.471,144.06,144.03,7.47]
[1727082141946,7.47,144.05,144.02,2.7082]
[1727082142135,7.47,144.03,144.02,1.0]
[1727082142538,10.9416,144.03,144.02,1.0]
[1727082142936,14.36884652,144.03,144.02,1.0]
[1727082143641,6.89884652,144.03,144.02,1.0]
[1727082144340,14.36884652,144.03,144.02,1.0]
[1727082144541,14.36884652,144.03,144.01,1.0]
[1727082144542,3.4719,144.02,144.01,1.0]
[1727082144739,10.9419,144.02,144.01,1.0]
[1727082145340,10.9419,144.02,144.01,2.0]
[1727082148841,3.4719,144.02,144.01,2.0]
[1727082149043,10.9419,144.02,144.01,2.0]
[1727082149345,7.47,144.02,144.01,2.0]
[1727082150446,3.42724652,144.03,144.01,2.0]
[1727082150838,11.96389399,144.09,144.02,7.47]
[1727082150839,26.72699132,144.09,144.02,7.47]
[1727082151038,3.4708,144.07,144.02,7.47]
[1727082151238,7.47,144.08,144.02,7.47]
[1727082151239,22.23309733,144.08,144.02,7.47]
[1727082151444,7.47,144.05,144.01,3.4391]
[1727082151742,7.47,144.04,144.01,3.4391]
[1727082151949,3.49339819,144.03,144.01,3.4391]
[1727082152150,3.49339819,144.03,144.01,1.4391]
[1727082152448,3.49339819,144.03,144.02,1.0]
[1727082153543,7.47,144.04,144.02,1.0]
[1727082153544,14.7704553,144.04,144.02,1.0]
[1727082153737,7.47,144.05,144.02,1.0]
[1727082154143,7.47,144.07,144.02,11.9418]
[1727082154350,3.47252119,144.06,144.03,7.47]
[1727082154647,7.47,144.08,144.03,7.47]
[1727082154945,10.9406,144.08,144.03,7.47]
[1727082155148,3.41589078,144.07,144.03,7.47]
[1727082156148,7.47,144.08,144.03,10.9415]
[1727082156346,3.45838387,144.07,144.03,10.9415]
[1727082156744,18.22847698,144.07,144.03,10.9415]
[1727082156941,7.47,144.06,144.02,1.0]
[1727082157142,3.4646371,144.05,144.02,1.0]
[1727082159044,14.77330326,144.11,144.02,11.9416]
[1727082159045,3.4708,144.07,144.02,11.9416]
[1727082159245,6.93241861,144.07,144.03,7.47]
[1727082160347,6.93241861,144.07,144.03,10.9416]
[1727082161350,10.9405,144.08,144.04,3.4713]
[1727082161548,10.9405,144.08,144.05,2.7317]
[1727082161751,14.46915578,144.08,144.05,2.7317]
[1727082163049,14.46915578,144.08,144.07,1.0]
[1727082165052,3.52865578,144.08,144.07,1.0]
[1727082165259,10.9403,144.09,144.07,1.0]
[1727082165755,3.54766611,144.08,144.07,1.0]
[1727082165954,18.33436376,144.08,144.07,1.0]
[1727082166153,3.54766611,144.08,144.07,1.0]
[1727082166751,10.9398,144.11,144.07,1.0]
[1727082166950,26.76954739,144.17,144.07,8.47]
[1727082167151,26.76954739,144.16,144.07,8.47]
[1727082167347,3.4696,144.12,144.07,11.9406]
[1727082167660,7.47,144.11,144.07,1.0]
[1727082168344,25.72702112,144.11,144.07,1.0]
[1727082168751,25.72702112,144.11,144.07,8.47]
[1727082169359,125.4076546,144.36,144.1,7.47]
[1727082169557,7.47,144.23,144.17,7.47]
[1727082169758,3.47166273,144.23,144.16,7.47]
[1727082169962,7.47,144.17,144.07,4.46784275]
[1727082170155,3.45811918,144.16,144.13,7.47]
[1727082170458,3.45811918,144.16,144.15,10.9387]
[1727082170654,7.47,144.21,144.15,10.9387]
[1727082170855,7.47,144.2,144.15,3.4687]
[1727082171250,10.86491596,144.2,144.14,3.469]
[1727082171452,10.86491596,144.2,144.09,58.99117911]
[1727082171657,10.86491596,144.2,144.13,7.47]
[1727082171862,10.86491596,144.2,144.15,7.47]
[1727082172358,1.4195,144.28,144.12,11.66]
[1727082172662,11.66,144.25,144.14,11.66]
[1727082172960,11.66,144.25,144.16,11.66]
[1727082173356,11.66,144.27,144.16,11.66]
[1727082173562,11.66,144.27,144.19,3.4676]
[1727082174157,11.66,144.27,144.2,3.4675]
[1727082174360,11.66,144.25,144.16,11.66]
[1727082175165,11.66,144.23,144.14,11.66]
[1727082175362,3.5069433,144.22,144.16,11.66]
[1727082175565,23.65004592,144.26,144.16,11.66]
[1727082175763,11.99004592,144.25,144.16,11.66]
[1727082176066,11.66,144.26,144.16,11.66]
[1727082176263,11.99004592,144.25,144.16,11.66]
[1727082176765,11.99004592,144.25,144.18,3.468]
[1727082176967,11.66,144.26,144.18,3.468]
[1727082177366,23.56294435,144.26,144.18,3.468]
[1727082177673,11.66,144.26,144.18,3.468]
[1727082178058,11.66,144.26,144.17,3.4682]
[1727082178262,11.66,144.26,144.14,11.66]
[1727082178263,11.66,144.24,144.14,11.66]
[1727082179371,11.66,144.22,144.14,3.4689]
[1727082179574,15.18449895,144.22,144.14,3.4689]
[1727082179763,11.66,144.2,144.13,2.7819]
[1727082180470,15.05369209,144.2,144.13,2.7819]
[1727082181171,11.66,144.18,144.09,60.34217911]
[1727082181371,11.66,144.16,144.07,3.8261]
[1727082181960,11.66,144.16,144.08,3.4702]
[1727082182362,11.66,144.12,144.07,1.0]
[1727082183070,15.13518261,144.12,144.07,1.0]
[1727082183267,15.13518261,144.12,144.04,1.0]
[1727082183268,15.13518261,144.12,144.04,11.66]
[1727082183574,15.13518261,144.12,144.06,3.4707]
[1727082184167,15.13518261,144.12,144.03,2.8261]
[1727082184668,11.66,144.1,144.03,6.2976]
[1727082184872,11.66,144.09,144.03,2.8261]
[1727082185369,3.49482531,144.09,144.03,2.8261]
[1727082185673,2.7856,144.15,144.03,2.8261]
[1727082185872,11.66,144.11,144.04,3.4713]
[1727082186075,15.14162811,144.11,144.04,3.4713]
[1727082188277,3.48162811,144.11,144.05,3.471]
[1727082188470,11.66,144.13,144.05,3.471]
[1727082188976,11.66,144.13,144.06,3.4708]
[1727082190277,11.66,144.14,144.04,11.66]
[1727082190472,13.0551,144.17,144.06,11.66]
[1727082190777,14.4275,144.19,144.08,11.66]
[1727082190976,1.3612,144.22,144.08,11.66]
[1727082191173,11.66,144.21,144.11,11.66]
[1727082191675,11.66,144.21,144.13,3.4691]
[1727082192784,11.66,144.19,144.12,3.4694]
[1727082192979,11.66,144.19,144.09,11.66]
[1727082193578,11.66,144.19,144.1,2.9176]
[1727082194577,1.3612,144.22,144.18,1.0]
[1727082194780,2.7675,144.27,144.18,1.0]
[1727082195082,2.7675,144.27,144.21,3.4671]
[1727082195283,2.7675,144.27,144.19,11.66]
[1727082195485,2.7675,144.27,144.18,3.9176]
[1727082195696,2.7675,144.27,144.19,11.66]
[1727082195888,2.7675,144.27,144.18,3.9176]
[1727082196093,2.7675,144.27,144.18,15.5776]
[1727082196590,1.3979,144.27,144.18,15.5776]
[1727082196907,13.0084,144.3,144.19,3.4676]
[1727082198393,11.66,144.29,144.2,11.66]
[1727082198593,2.8381,144.34,144.2,11.66]
[1727082198790,11.66,144.3,144.2,11.66]
[1727082199186,11.66,144.3,144.21,3.4673]
[1727082199497,15.1642355,144.3,144.21,3.4673]
[1727082199699,15.1642355,144.3,144.2,15.1275]
[1727082200196,11.66,144.28,144.18,15.5776]
[1727082200500,11.66,144.28,144.18,3.9176]
[1727082201297,15.1642355,144.3,144.19,11.66]
[1727082202892,15.1642355,144.3,144.2,3.4674]
[1727082203499,15.1642355,144.3,144.21,11.66]
[1727082204094,15.1642355,144.3,144.19,11.66]
[1727082204798,15.1642355,144.3,144.23,1.0]
[1727082205096,1.3495,144.33,144.23,1.0]
[1727082205293,11.66,144.31,144.23,1.0]
[1727082206198,15.1561493,144.31,144.23,1.0]
[1727082206895,11.66,144.29,144.23,1.0]
[1727082207698,15.07553402,144.29,144.23,1.0]
[1727082207888,11.66,144.27,144.23,1.0]
[1727082208089,3.41553402,144.29,144.23,1.0]
[1727082208293,11.66,144.24,144.22,1.0]
[1727082208700,15.21498605,144.24,144.22,1.0]
[1727082208998,3.472078,144.26,144.22,1.0]
[1727082209297,15.10224498,144.3,144.22,1.0]
[1727082210793,11.66,144.28,144.22,1.0]
[1727082211103,11.66,144.26,144.22,1.0]
[1727082211290,11.66,144.24,144.22,1.0]
[1727082211489,3.53188094,144.28,144.22,1.0]
[1727082211693,11.66,144.27,144.22,1.0]
[1727082211898,15.20645112,144.27,144.22,1.0]
[1727082212897,3.54645112,144.27,144.22,1.0]
[1727082213092,11.66,144.25,144.22,1.0]
[1727082213799,14.4516,144.26,144.22,1.0]
[1727082214195,1.1937,144.34,144.24,3.4665]
[1727082214503,11.66,144.33,144.24,3.4665]
[1727082215902,11.66,144.33,144.31,1.0]
[1727082220697,2.5306,144.34,144.31,1.0]
[1727082222501,11.66,144.35,144.31,1.0]
[1727082225916,11.66,144.35,144.3,1.0]
[1727082225917,11.66,144.35,144.28,3.4655]
[1727082226209,14.04294049,144.34,144.2,6.935]
[1727082226409,14.04294049,144.34,144.26,11.66]
[1727082226800,14.04294049,144.33,144.26,11.66]
[1727082227201,14.04294049,144.33,144.32,1.0]
[1727082227704,17.50734049,144.33,144.32,1.0]
[1727082227901,29.16734049,144.33,144.32,1.0]
[1727082229102,3.4644,144.33,144.32,1.0]
[1727082230012,15.1243,144.34,144.32,1.0]
[1727082231112,3.4644,144.33,144.32,1.0]
[1727082231504,11.66,144.34,144.32,1.0]
[1727082231902,15.1243,144.34,144.32,1.0]
[1727082233310,15.1243,144.34,144.29,0.29689592]
[1727082233503,3.4644,144.33,144.29,0.29689592]
[1727082233710,11.66,144.34,144.29,0.29689592]
[1727082234409,15.1243,144.34,144.29,0.29689592]
[1727082237213,15.1243,144.34,144.28,4.4656]
[1727082237214,15.1243,144.34,144.28,3.4656]
[1727082237717,15.1243,144.34,144.33,1.0]
[1727082238113,11.66,144.36,144.33,1.0]
[1727082239618,3.4639,144.35,144.33,1.0]
[1727082240619,3.4642,144.34,144.33,1.0]
[1727082242323,15.1242,144.34,144.33,1.0]
[1727082243227,11.66,144.34,144.33,1.0]
[1727082243418,1.4562,144.38,144.33,1.0]
[1727082243619,3.4642,144.34,144.33,1.0]
[1727082244622,15.1241,144.35,144.33,1.0]
[1727082245722,3.4642,144.34,144.33,1.0]
[1727082246621,3.4641,144.35,144.33,1.0]
[1727082246824,11.66,144.34,144.33,1.0]
[1727082247125,3.4644,144.33,144.32,1.0]
[1727082247929,3.4647,144.32,144.31,1.0]
[1727082249233,3.4646,144.33,144.31,1.0]
[1727082250134,11.66,144.34,144.31,1.0]
[1727082250135,3.4646,144.32,144.31,1.0]
[1727082250328,15.1246,144.32,144.31,1.0]
[1727082252020,11.66,144.32,144.31,1.0]
[1727082255523,15.1246,144.32,144.31,1.0]
[1727082256633,40.51576279,144.32,144.31,1.0]
[1727082257929,3.465,144.31,144.25,7.624]
[1727082258129,18.83195256,144.31,144.25,7.624]
[1727082258438,15.35550115,144.31,144.3,1.0]
[1727082258734,18.7896414,144.31,144.3,1.0]
[1727082259728,15.3246414,144.31,144.3,1.0]
[1727082260534,22.7746414,144.31,144.3,1.0]
[1727082260732,26.2395414,144.31,144.3,1.0]
[1727082261131,14.34904025,144.31,144.3,1.0]
[1727082262330,26.2395414,144.31,144.3,1.0]
[1727082262531,39.79174236,144.31,144.3,1.0]
[1727082263635,14.34904025,144.31,144.3,1.0]
[1727082268436,14.34904025,144.31,144.25,11.6077]
[1727082268642,7.45,144.3,144.25,11.6077]
[1727082268850,21.0287187,144.34,144.33,1.0]
[1727082269143,19.40894503,144.34,144.33,1.0]
[1727082269448,7.45,144.34,144.33,1.0]
[1727082269635,3.4638,144.36,144.33,1.0]
[1727082269842,7.45,144.35,144.33,1.0]
[1727082270845,3.464,144.35,144.33,1.0]
[1727082271050,17.01139581,144.39,144.33,1.0]
[1727082271251,7.45,144.37,144.33,8.45]
[1727082271455,7.45,144.37,144.33,1.0]
[1727082271949,3.4244062,144.36,144.33,1.0]
[1727082272146,13.57151395,144.45,144.35,7.45]
[1727082272346,7.45,144.43,144.36,7.45]
[1727082272653,14.40568308,144.43,144.37,1.3756]
[1727082272851,13.57151395,144.42,144.37,1.3756]
[1727082273053,7.45,144.41,144.37,1.3756]
[1727082273364,13.57151395,144.42,144.33,1.0]
[1727082273651,3.49348308,144.43,144.33,1.0]
[1727082273652,7.45,144.38,144.33,1.0]
[1727082274047,7.45,144.38,144.33,2.3756]
[1727082274246,7.45,144.38,144.33,9.8256]
[1727082274448,8.26,144.37,144.33,9.8256]
[1727082275156,3.8604,144.37,144.36,7.45]
[1727082275449,17.43191395,144.37,144.36,7.45]
[1727082275645,3.8604,144.37,144.36,7.45]
[1727082276255,17.43191395,144.37,144.36,7.45]
[1727082276450,3.8604,144.37,144.36,7.45]
[1727082276651,3.8604,144.37,144.35,7.45]
[1727082277147,6.75,144.36,144.35,7.45]
[1727082279753,17.03451395,144.39,144.35,7.45]
[1727082279754,13.57151395,144.39,144.35,7.45]
[1727082279959,6.76,144.41,144.38,1.0]
[1727082280260,13.70506465,144.41,144.38,1.0]
[1727082280644,27.25348131,144.41,144.38,1.0]
[1727082281554,4.89,144.39,144.38,1.0]
[1727082281757,6.76,144.41,144.38,8.45]
[1727082282057,74.70641663,145.08,144.4,7.45]
[1727082282058,7.45,144.47,144.4,7.45]
[1727082282556,3.4617,144.45,144.4,7.45]
[1727082282757,3.40564141,144.44,144.4,7.45]
[1727082283160,13.54247276,144.49,144.4,7.45]
[1727082283454,7.45,144.47,144.42,7.45]
[1727082283851,3.51652921,144.49,144.42,7.45]
[1727082284047,7.45,144.48,144.43,7.45]
[1727082284247,3.45935269,144.48,144.39,11.64]
[1727082284449,17.57846578,144.56,144.39,11.64]
[1727082284450,11.64,144.49,144.39,11.64]
[1727082284655,3.4612,144.47,144.4,3.4626]
[1727082284851,3.53385543,144.49,144.41,11.64]
[1727082285054,13.51204267,144.5,144.41,11.64]
[1727082285257,16.99663078,144.5,144.41,11.64]
[1727082285651,3.4606,144.49,144.42,3.4621]
[1727082286046,12.1206,144.49,144.42,3.4621]
[1727082286256,8.66,144.49,144.41,11.64]
[1727082286953,8.66,144.49,144.41,15.1024]
[1727082287251,8.66,144.49,144.41,11.64]
[1727082288255,22.1491677,144.49,144.41,11.64]
[1727082288453,8.66,144.49,144.41,11.64]
[1727082288656,12.1207,144.49,144.43,3.4619]
[1727082289052,8.66,144.49,144.41,11.64]
[1727082289361,8.66,144.49,144.42,3.4622]
[1727082289559,8.66,144.49,144.41,11.64]
[1727082290060,17.51,144.49,144.41,11.64]
[1727082290861,17.51,144.49,144.42,3.4622]
[1727082292551,3.461,144.48,144.42,3.4622]
[1727082293151,17.51,144.49,144.4,11.64]
[1727082293353,1.3894,144.48,144.4,11.64]
[1727082293760,3.4614,144.46,144.4,15.1025]
[1727082294664,1.3894,144.48,144.4,15.1025]
[1727082294865,3.4611,144.47,144.4,11.64]
[1727082295063,17.51,144.49,144.42,11.64]
[1727082296861,3.4609,144.48,144.43,3.4619]
[1727082299467,17.51,144.49,144.42,11.64]
[1727082300364,20.9707,144.49,144.44,3.4616]
[1727082300569,17.51,144.49,144.48,1.0]
[1727082300763,17.51,144.49,144.42,15.1022]
[1727082300969,17.51,144.49,144.4,11.64]
[1727082301172,3.4623,144.42,144.37,3.4634]
[1727082301366,3.45999265,144.42,144.33,0.3908]
[1727082301563,11.64,144.44,144.35,11.64]
[1727082301869,11.64,144.43,144.33,12.0308]
[1727082302066,17.51,144.49,144.33,11.64]
[1727082302365,1.409,144.47,144.37,11.64]
[1727082303066,3.4619,144.44,144.38,3.463]
[1727082303266,1.409,144.47,144.41,11.64]
[1727082303666,8.85,144.49,144.43,11.64]
[1727082303867,14.98,144.49,144.43,11.64]
[1727082304170,14.98,144.49,144.45,3.4615]
[1727082304359,14.98,144.49,144.43,11.64]
[1727082305171,14.98,144.49,144.44,3.4617]
[1727082305666,14.98,144.49,144.43,11.64]
[1727082306070,14.98,144.49,144.43,15.1019]
[1727082307270,14.98,144.49,144.44,3.4618]
[1727082309369,14.98,144.49,144.43,15.102]
[1727082309370,18.4406,144.49,144.43,15.102]
[1727082309580,14.98,144.49,144.43,15.102]
[1727082309871,14.98,144.49,144.43,11.64]
[1727082310079,14.98,144.49,144.42,3.4622]
[1727082310080,3.461,144.48,144.42,3.4622]
[1727082310566,3.4611,144.47,144.42,3.4622]
[1727082315068,1.4513,144.48,144.43,3.4619]
[1727082315270,1.4513,144.48,144.43,11.64]
[1727082315970,1.4513,144.48,144.41,11.64]
[1727082317270,3.4614,144.46,144.41,15.1023]
[1727082318669,12.6814,144.46,144.41,15.1023]
[1727082318873,9.22,144.46,144.43,11.64]
[1727082319380,9.22,144.46,144.42,11.64]
[1727082320375,9.22,144.46,144.44,7.44]
[1727082320781,12.6813,144.46,144.38,1.3882]
[1727082320974,9.22,144.46,144.43,7.44]
[1727082321276,9.22,144.46,144.45,7.44]
[1727082322882,9.22,144.46,144.43,10.9019]
[1727082323984,9.22,144.46,144.42,7.44]
[1727082324382,9.22,144.46,144.42,10.9022]
[1727082324884,9.22,144.46,144.43,7.44]
[1727082325076,9.22,144.46,144.43,10.9019]
[1727082325580,9.22,144.46,144.43,7.44]
[1727082329680,18.21,144.46,144.43,7.44]
[1727082330382,29.1113,144.46,144.41,3.4623]
[1727082330583,29.1113,144.46,144.41,10.9023]
[1727082330787,3.4617,144.45,144.41,7.44]
[1727082330979,25.65,144.46,144.35,3.43862312]
[1727082331181,25.65,144.46,144.41,7.44]
[1727082331685,7.44,144.45,144.41,7.44]
[1727082332087,8.8974,144.45,144.39,7.44]
[1727082332287,3.4619,144.44,144.39,10.9028]
[1727082332488,3.4619,144.44,144.39,7.44]
[1727082332689,3.4619,144.44,144.42,7.44]
[1727082332893,16.8203,144.46,144.43,7.44]
[1727082333186,7.44,144.54,144.45,7.44]
[1727082333393,7.44,144.54,144.5,7.44]
[1727082334390,1.3396,144.55,144.48,3.4608]
[1727082334597,7.44,144.51,144.38,10.36655743]
[1727082334793,3.49896481,144.5,144.38,10.36655743]
[1727082334995,11.92896481,144.5,144.46,10.9011]
[1727082336398,11.92896481,144.5,144.46,3.4611]
[1727082336899,11.92896481,144.5,144.42,11.63]
[1727082337296,13.31736481,144.5,144.44,3.4615]
[1727082337999,3.4607,144.49,144.44,3.4615]
[1727082338191,10.9107,144.49,144.44,3.4615]
[1727082338600,10.9107,144.49,144.42,11.63]
[1727082338601,10.9107,144.49,144.45,3.4615]
[1727082341196,10.9107,144.49,144.44,3.4617]
[1727082341997,10.9107,144.49,144.45,3.4615]
[1727082343612,7.45,144.49,144.45,3.4615]
[1727082345311,7.45,144.49,144.48,3.4608]
[1727082347016,7.45,144.49,144.46,3.4612]
[1727082347316,7.45,144.49,144.45,11.63]
[1727082348412,7.45,144.49,144.47,3.4609]
[1727082349715,16.59,144.49,144.46,3.4612]
[1727082350112,16.59,144.49,144.43,11.63]
[1727082350422,16.59,144.49,144.45,3.4614]
[1727082351218,16.59,144.49,144.46,3.4612]
[1727082351419,16.59,144.49,144.38,10.37633722]
[1727082351420,16.59,144.49,144.44,11.63]
[1727082351615,16.59,144.49,144.39,10.74225599]
[1727082351823,16.59,144.49,144.4,6.71499533]
[1727082352019,2.8536,144.48,144.41,11.63]
[1727082352717,6.3145,144.48,144.44,3.4617]
[1727082355123,2.8536,144.48,144.44,3.4617]
[1727082356128,7.38,144.47,144.44,3.4617]
[1727082361129,10.8411,144.47,144.43,7.45]
[1727082361334,18.2911,144.47,144.43,7.45]
[1727082362324,14.83,144.47,144.43,10.9119]
[1727082365830,18.2911,144.47,144.43,3.4619]
[1727082366132,10.99010806,144.46,144.42,3.4622]
[1727082366336,14.45150806,144.46,144.42,3.4622]
[1727082366534,3.54010806,144.46,144.42,7.45]
[1727082366734,7.38,144.47,144.45,7.45]
[1727082366933,83.1,144.66,144.46,7.45]
[1727082367130,83.1,144.66,144.51,7.45]
[1727082367131,7.45,144.56,144.51,7.45]
[1727082367326,10.9091,144.56,144.51,7.45]
[1727082367633,2.8253,144.57,144.5,10.9102]
[1727082367829,7.45,144.54,144.43,6.72055549]
[1727082368031,7.45,144.52,144.47,7.45]
[1727082368232,3.40433042,144.51,144.48,3.4607]
[1727082368428,7.45,144.49,144.43,6.71995395]
[1727082368730,7.45,144.47,144.43,10.9119]
[1727082369235,7.45,144.47,144.43,7.45]
[1727082369735,8.89,144.49,144.44,7.45]
[1727082369736,16.34,144.49,144.44,7.45]
[1727082369928,19.82400034,144.49,144.44,7.45]
[1727082370134,23.28460034,144.49,144.44,10.9117]
[1727082370329,8.89,144.49,144.42,11.63]
[1727082370639,8.89,144.49,144.45,3.4614]
[1727082372939,8.89,144.49,144.42,11.63]
[1727082373134,8.89,144.49,144.39,11.63]
[1727082373441,8.89,144.49,144.43,3.4619]
[1727082373937,3.4612,144.47,144.42,3.4621]
[1727082374335,3.4612,144.47,144.39,11.63]
[1727082374734,3.4614,144.46,144.39,11.63]
[1727082374937,11.63,144.48,144.39,11.63]
[1727082375838,11.63,144.48,144.42,3.4621]
[1727082376437,3.4621,144.43,144.3,6.9299]
[1727082376631,3.4621,144.43,144.37,11.63]
[1727082376941,11.63,144.44,144.36,11.63]
[1727082377143,3.4624,144.42,144.36,11.63]
[1727082377437,13.0148,144.44,144.37,3.4633]
[1727082377742,13.0148,144.44,144.36,11.63]
[1727082378245,3.4623,144.42,144.38,3.4631]
[1727082378435,7.00657237,144.42,144.38,3.4631]
[1727082378837,3.4621,144.43,144.39,3.4628]
[1727082379141,1.3848,144.44,144.37,11.63]
[1727082379545,2.7652,144.45,144.39,11.63]
[1727082379732,10.3168,144.49,144.39,11.63]
[1727082380047,13.2045,144.49,144.39,11.63]
[1727082380342,3.461,144.48,144.39,11.63]
[1727082380542,13.2045,144.49,144.41,11.63]
[1727082380934,3.4611,144.47,144.43,3.4619]
[1727082381134,13.2045,144.49,144.43,3.4619]
[1727082381334,11.63,144.48,144.39,11.63]
[1727082381534,3.4615,144.46,144.39,11.63]
[1727082382238,3.4615,144.46,144.42,3.4621]
[1727082382543,3.4615,144.46,144.39,11.63]
[1727082382750,3.4615,144.46,144.42,3.4621]
[1727082383042,3.4616,144.45,144.42,3.4621]
[1727082383246,11.63,144.48,144.44,3.4616]
[1727082383434,13.2045,144.49,144.44,3.4616]
[1727082383839,3.4609,144.48,144.44,3.4616]
[1727082384036,19.3645,144.49,144.44,3.4616]
[1727082384350,3.4609,144.48,144.44,3.4616]
[1727082387253,30.9945,144.49,144.42,3.4621]
[1727082387540,11.63,144.47,144.39,6.7233224]
[1727082387746,11.63,144.47,144.38,11.63]
[1727082388141,3.4617,144.45,144.41,3.4624]
[1727082388340,11.63,144.47,144.38,11.63]
[1727082388742,3.4614,144.46,144.42,3.4621]
[1727082390452,3.4616,144.45,144.41,3.4624]
[1727082390656,11.63,144.47,144.36,11.63]
[1727082390847,11.63,144.47,144.37,6.72360401]
[1727082391047,3.462,144.43,144.36,11.63]
[1727082391346,11.63,144.45,144.36,11.63]
[1727082391546,2.8628,144.44,144.36,11.63]
[1727082392047,2.8628,144.44,144.38,3.463]
[1727082392048,3.4624,144.42,144.38,3.463]
[1727082392245,2.8628,144.44,144.36,11.63]
[1727082392657,3.4623,144.42,144.39,3.4629]
[1727082393246,2.8628,144.44,144.34,91.13489242]
[1727082393545,2.8628,144.44,144.35,6.72199497]
[1727082393747,3.4624,144.42,144.38,3.4631]
[1727082393957,6.99573098,144.42,144.38,3.4631]
[1727082394251,3.4624,144.42,144.38,3.4631]
[1727082394647,6.90149959,144.42,144.38,3.4631]
[1727082395854,3.43909959,144.42,144.35,6.72002266]
[1727082396053,11.63,144.41,144.34,79.50489242]
[1727082396246,3.55068948,144.4,144.34,79.50489242]
[1727082396555,3.4631,144.39,144.35,3.4638]
[1727082397547,6.75,144.38,144.35,3.4638]
[1727082397754,8.98,144.37,144.35,3.4638]
[1727082400152,8.98,144.37,144.34,79.50489242]
[1727082400153,8.98,144.37,144.27,83.12]
[1727082400353,8.98,144.37,144.3,11.63]
[1727082400752,3.4638,144.36,144.32,3.4646]
[1727082400952,8.98,144.37,144.32,3.4646]
[1727082401347,3.4641,144.35,144.32,3.4646]
[1727082402758,3.4641,144.35,144.31,3.4648]
[1727082403858,3.4642,144.34,144.31,3.4648]
[1727082404464,20.61,144.37,144.28,3.51261436]
[1727082404655,22.0442,144.37,144.27,11.63]
[1727082404850,22.0442,144.37,144.29,11.63]
[1727082405062,3.464,144.35,144.31,3.4647]
[1727082405257,22.0442,144.37,144.31,3.4647]
[1727082405653,3.4642,144.34,144.31,3.4647]